fUSD/lending_fUSD_20241202
["ID","MTS","AMOUNT","RATE_DAILY","PERIOD"]
[343993034,1733170316406,500.0,0.00025,120]
[343993035,1733170317120,3812.44,0.00025,120]
[343993036,1733170318613,500.0,0.00025,120]
[343993037,1733170319356,500.0,0.00025,120]
[343993038,1733170319836,1776.0,0.00025,120]
[343993039,1733170320629,747.84,0.00025,120]
[343993040,1733170320870,500.0,0.00025,120]
[343993041,1733170320937,2623.61,0.00025,120]
[343993042,1733170321015,802.52,0.00025,120]
[343993043,1733170322274,512.56015222,0.00025,120]
[343993044,1733170322470,500.0,0.00025,120]
[343993045,1733170322564,500.0,0.00025,120]
[343993046,1733170323589,3957.62,0.00025,120]
[343993047,1733170323948,1862.06,0.00025,120]
[343993048,1733170324749,500.0,0.00025,120]
[343993049,1733170324925,500.0,0.00025,120]
[343993050,1733170325280,500.0,0.00025,120]
[343993051,1733170325533,506.86768506,0.00025,120]
[343993052,1733170326669,4166.07,0.00025,120]
[343993053,1733170326921,500.0,0.00025,120]
[343993054,1733170327609,535.56,0.00025,120]
[343993055,1733170327663,16825.3,0.00025,120]
[343993056,1733170327794,533.04,0.00025,120]
[343993057,1733170328548,500.0,0.00025,120]
[343993058,1733170328887,1308.9,0.00025,120]
[343993059,1733170329320,509.55851034,0.00025,120]
[343993060,1733170330212,500.0,0.00025,120]
[343993061,1733170330277,4609.95,0.00025,120]
[343993062,1733170330648,941.69,0.00025,120]
[343993063,1733170331633,500.0,0.00025,120]
[343993064,1733170332816,500.0,0.00025,120]
[343993065,1733170333702,500.0,0.00025,120]
[343993066,1733170333761,411.40052985,0.00025,120]
[343993067,1733170333916,944.36,0.00025,120]
[343993068,1733170334971,1801.32,0.00025,120]
[343993069,1733170335034,1429.97,0.00025,120]
[343993070,1733170336479,500.0,0.00025,120]
[343993071,1733170336538,7642.51,0.00025,120]
[343993072,1733170336597,848.02,0.00025,120]
[343993073,1733170337011,3806.29,0.00025,120]
[343993074,1733170337175,1928.14,0.00025,120]
[343993075,1733170337413,1972.69,0.00025,120]
[343993076,1733170337473,224.3422028,0.00025,120]
[343993077,1733170337747,500.0,0.00025,120]
[343993078,1733170339014,617.18,0.00025,120]
[343993079,1733170339412,4579.59,0.00025,120]
[343993080,1733170339525,500.0,0.00025,120]
[343993081,1733170339679,745.44,0.00025,120]
[343993082,1733170341186,629.94,0.00025,120]
[343993083,1733170342140,500.0,0.00025,120]
[343993084,1733170343573,500.0,0.00025,120]
[343993085,1733170344388,1139.17,0.00025,120]
[343993086,1733170344461,500.0,0.00025,120]
[343993087,1733170344558,2780.63,0.00025,120]
[343993088,1733170344806,500.0,0.00025,120]
[343993089,1733170344953,500.0,0.00025,120]
[343993090,1733170345531,4593.99,0.00025,120]
[343993091,1733170345582,500.0,0.00025,120]
[343993092,1733170346184,500.0,0.00025,120]
[343993093,1733170346471,500.0,0.00025,120]
[343993094,1733170347079,761.42,0.00025,120]
[343993095,1733170347641,500.0,0.00025,120]
[343993096,1733170347795,500.0,0.00025,120]
[343993097,1733170347905,10094.35,0.00025,120]
[343993098,1733170347955,3807.63,0.00025,120]
[343993099,1733170348749,500.0,0.00025,120]
[343993100,1733170349471,936.73,0.00025,120]
[343993101,1733170349529,2415.86,0.00025,120]
[343993102,1733170350057,1915.66,0.00025,120]
[343993103,1733170350420,767.33,0.00025,120]
[343993104,1733170350850,1796.27,0.00025,120]
[343993105,1733170350926,2739.42,0.00025,120]
[343993106,1733170351769,500.0,0.00025,120]
[343993107,1733170352472,5465.91,0.00025,120]
[343993108,1733170354326,6415.82,0.00025,120]
[343993109,1733170354673,594.71,0.00025,120]
[343993110,1733170356287,500.0,0.00025,120]
[343993111,1733170356590,2249.6,0.00025,120]
[343993112,1733170356980,500.0,0.00025,120]
[343993113,1733170357179,1975.53,0.00025,120]
[343993114,1733170357400,6814.98,0.00025,120]
[343993115,1733170357492,1304.34,0.00025,120]
[343993116,1733170357607,1598.36,0.00025,120]
[343993117,1733170358273,869.23,0.00025,120]
[343993118,1733170358679,500.0,0.00025,120]
[343993119,1733170359162,3816.77,0.00025,120]
[343993120,1733170359412,1215.05,0.00025,120]
[343993121,1733170359678,500.0,0.00025,120]
[343993122,1733170359877,716.64,0.00025,120]
[343993123,1733170361085,500.0,0.00025,120]
[343993124,1733170361740,974.57,0.00025,120]
[343993125,1733170363368,500.0,0.00025,120]
[343993126,1733170363787,2978.22,0.00025,120]
[343993127,1733170364851,1300.06,0.00025,120]
[343993128,1733170365163,1722.63,0.00025,120]
[343993129,1733170366240,1098.58,0.00025,120]
[343993130,1733170366675,7770.07,0.00025,120]
[343993131,1733170366869,500.0,0.00025,120]
[343993132,1733170367142,500.0,0.00025,120]
[343993133,1733170367291,2710.16,0.00025,120]
[343993134,1733170367426,500.0,0.00025,120]
[343993135,1733170367707,500.0,0.00025,120]
[343993136,1733170367985,500.0,0.00025,120]
[343993137,1733170368038,500.0,0.00025,120]
[343993138,1733170368233,500.0,0.00025,120]
[343993139,1733170368500,500.0,0.00025,120]
[343993140,1733170368775,500.0,0.00025,120]
[343993141,1733170368827,500.0,0.00025,120]
[343993142,1733170368904,500.0,0.00025,120]
[343993143,1733170369065,483.7054886,0.00025,120]
[343993144,1733170369171,500.0,0.00025,120]
[343993145,1733170369232,667.75,0.00025,120]
[343993146,1733170369754,500.0,0.00025,120]
[343993147,1733170369936,500.0,0.00025,120]
[343993148,1733170370023,500.0,0.00025,120]
[343993149,1733170370310,500.0,0.00025,120]
[343993150,1733170370697,500.0,0.00025,120]
[343993151,1733170370887,500.0,0.00025,120]
[343993152,1733170370961,500.0,0.00025,120]
[343993153,1733170371043,1862.19,0.00025,120]
[343993154,1733170371221,5534.48,0.00025,120]
[343993155,1733170371277,500.0,0.00025,120]
[343993156,1733170371512,500.0,0.00025,120]
[343993157,1733170371748,500.0,0.00025,120]
[343993158,1733170372892,4379.7,0.00025,120]
[343993159,1733170372944,5895.27,0.00025,120]
[343993160,1733170373001,2307.38,0.00025,120]
[343993161,1733170373075,409.53780233,0.00025,120]
[343993162,1733170373617,2699.18,0.00025,120]
[343993163,1733170373979,1221.5,0.00025,120]
[343993164,1733170374595,500.0,0.00025,120]
[343993165,1733170375420,670.64,0.00025,120]
[343993166,1733170375473,500.0,0.00025,120]
[343993167,1733170376033,500.0,0.00025,120]
[343993168,1733170376115,797.95,0.00025,120]
[343993169,1733170376447,3312.99,0.00025,120]
[343993170,1733170377008,546.12,0.00025,120]
[343993171,1733170377266,500.0,0.00025,120]
[343993172,1733170377351,899.32,0.00025,120]
[343993173,1733170377776,500.0,0.00025,120]
[343993174,1733170377937,1188.05,0.00025,120]
[343993175,1733170379388,979.76,0.00025,120]
[343993176,1733170379490,500.0,0.00025,120]
[343993177,1733170380416,2064.86,0.00025,120]
[343993178,1733170381396,2784.95,0.00025,120]
[343993179,1733170381450,2048.46,0.00025,120]
[343993180,1733170381508,778.0,0.00025,120]
[343993181,1733170382218,903.8,0.00025,120]
[343993182,1733170382712,500.0,0.00025,120]
[343993183,1733170383333,633.7,0.00025,120]
[343993184,1733170383996,500.0,0.00025,120]
[343993185,1733170384386,766.69,0.00025,120]
[343993186,1733170384655,588.26,0.00025,120]
[343993187,1733170386330,500.0,0.00025,120]
[343993188,1733170387294,560.89,0.00025,120]
[343993189,1733170388294,500.0,0.00025,120]
[343993190,1733170388639,500.0,0.00025,120]
[343993191,1733170388937,500.0,0.00025,120]
[343993192,1733170389693,2147.45,0.00025,120]
[343993193,1733170391144,5026.63,0.00025,120]
[343993194,1733170391256,500.0,0.00025,120]
[343993195,1733170391833,500.0,0.00025,120]
[343993196,1733170392039,2775.54,0.00025,120]
[343993197,1733170392971,609.88,0.00025,120]
[343993198,1733170393035,1428.54,0.00025,120]
[343993199,1733170393158,6219.43,0.00025,120]
[343993200,1733170393642,536.85809222,0.00025,120]
[343993201,1733170394313,14256.43,0.00025,120]
[343993202,1733170394690,923.82,0.00025,120]
[343993203,1733170395110,500.0,0.00025,120]
[343993204,1733170395991,455.7287301,0.00025,120]
[343993205,1733170396944,525.350089,0.00025,120]
[343993206,1733170397037,500.0,0.00025,120]
[343993207,1733170397486,841.76,0.00025,120]
[343993208,1733170397747,500.0,0.00025,120]
[343993209,1733170399025,500.0,0.00025,120]
[343993210,1733170399173,2403.69,0.00025,120]
[343993211,1733170399372,500.0,0.00025,120]
[343993212,1733170399534,2365.53,0.00025,120]
[343993213,1733170400018,500.0,0.00025,120]
[343993214,1733170401459,500.0,0.00025,120]
[343993215,1733170401626,500.0,0.00025,120]
[343993216,1733170401971,2290.94,0.00025,120]
[343993217,1733170402067,507.02784682,0.00025,120]
[343993218,1733170402385,2249.02,0.00025,120]
[343993219,1733170403120,24319.01,0.00025,120]
[343993220,1733170403403,910.05,0.00025,120]
[343993221,1733170404194,1645.31,0.00025,120]
[343993222,1733170404855,500.0,0.00025,120]
[343993223,1733170405316,9439.4,0.00025,120]
[343993224,1733170406665,1759.8,0.00025,120]
[343993225,1733170407561,2474.35,0.00025,120]
[343993226,1733170407629,500.0,0.00025,120]
[343993227,1733170407966,2097.22,0.00025,120]
[343993228,1733170408249,564.9,0.00025,120]
[343993229,1733170408569,711.21,0.00025,120]
[343993230,1733170409218,500.0,0.00025,120]
[343993231,1733170409292,500.0,0.00025,120]
[343993232,1733170410090,1281.17,0.00025,120]
[343993233,1733170410325,500.0,0.00024683,120]
[343993234,1733170410588,508.10130246,0.00025,120]
[343993235,1733170411071,764.45,0.00025,120]
[343993236,1733170411821,500.0,0.00025,120]
[343993237,1733170411944,2438.14,0.00025,120]
[343993238,1733170412075,500.0,0.00025,120]
[343993239,1733170412530,500.0,0.00025,120]
[343993240,1733170412600,500.0,0.00025,120]
[343993241,1733170412920,789.51,0.00025,120]
[343993242,1733170413604,500.0,0.00025,120]
[343993243,1733170414471,2159.01,0.00025,120]
[343993244,1733170415222,500.0,0.00025,120]
[343993245,1733170416124,500.0,0.00025,120]
[343993246,1733170416443,552.63431293,0.00025,120]
[343993247,1733170416684,1412.33,0.00025,120]
[343993248,1733170418556,2423.87,0.00025,120]
[343993249,1733170418647,949.16,0.00025,120]
[343993250,1733170418964,522.13,0.00025,120]
[343993251,1733170419068,500.0,0.00025,120]
[343993252,1733170419471,500.0,0.00025,120]
[343993253,1733170419597,596.45,0.00025,120]
[343993254,1733170420432,1415.13,0.00025,120]
[343993255,1733170420728,830.18,0.00025,120]
[343993256,1733170421217,500.0,0.00025,120]
[343993257,1733170422413,500.0,0.00025,120]
[343993258,1733170422621,2500.0,0.00025,120]
[343993259,1733170422690,500.0,0.00025,120]
[343993260,1733170424035,200.0,0.00025,120]
[343993261,1733170424110,3710.58,0.00025,120]
[343993262,1733170424304,500.0,0.00025,120]
[343993263,1733170424553,500.0,0.00025,120]
[343993264,1733170425044,500.0,0.00025,120]
[343993265,1733170425759,582.62159628,0.00025,120]
[343993266,1733170425977,1100.79,0.00025,120]
[343993267,1733170426532,930.95,0.00025,120]
[343993268,1733170426970,2094.8,0.00025,120]
[343993269,1733170427183,706.15,0.00025,120]
[343993270,1733170427568,500.0,0.00025,120]
[343993271,1733170427888,2459.22,0.00025,120]
[343993272,1733170428464,2238.85,0.00025,120]
[343993273,1733170429331,1746.49,0.00025,120]
[343993274,1733170430121,500.0,0.00025,120]
[343993275,1733170430180,547.59,0.00025,120]
[343993276,1733170431542,500.0,0.00025,120]
[343993277,1733170431646,500.0,0.00025,120]
[343993278,1733170431882,560.36,0.00025,120]
[343993279,1733170432669,500.0,0.00025,120]
[343993280,1733170432803,13650.24,0.00025,120]
[343993281,1733170433269,737.84,0.00025,120]
[343993282,1733170434740,500.0,0.00025,120]
[343993283,1733170436575,500.0,0.00025,120]
[343993284,1733170436634,500.0,0.00025,120]
[343993285,1733170436814,500.0,0.00025,120]
[343993286,1733170437053,500.0,0.00025,120]
[343993287,1733170437382,500.0,0.00025,120]
[343993288,1733170437581,500.0,0.00025,120]
[343993289,1733170437872,1932.37,0.00025,120]
[343993290,1733170438807,1095.57,0.00025,120]
[343993291,1733170438930,856.35,0.00025,120]
[343993292,1733170439237,500.0,0.00025,120]
[343993293,1733170440881,500.0,0.00025,120]
[343993294,1733170440985,2439.74,0.00025,120]
[343993295,1733170441438,590.47,0.00025,120]
[343993296,1733170441584,500.0,0.00025,120]
[343993297,1733170442493,500.0,0.00025,120]
[343993298,1733170442876,536.83542436,0.00025,120]
[343993299,1733170443282,500.0,0.00025,120]
[343993300,1733170443829,698.44,0.00025,120]
[343993301,1733170444268,866.59,0.00025,120]
[343993302,1733170444498,2912.2,0.00025,120]
[343993303,1733170445496,500.0,0.00025,120]
[343993304,1733170445704,500.0,0.00025,120]
[343993305,1733170446177,10272.35,0.00025,120]
[343993306,1733170446325,500.0,0.00025,120]
[343993307,1733170447419,500.0,0.00025,120]
[343993308,1733170447609,1581.01,0.00025,120]
[343993309,1733170447893,2078.1,0.00025,120]
[343993310,1733170448832,500.0,0.00025,120]
[343993311,1733170449247,500.0,0.00025,120]
[343993312,1733170449466,1000.0,0.00025,120]
[343993313,1733170449749,1799.6,0.00025,120]
[343993314,1733170449897,3104.67,0.00025,120]
[343993315,1733170449947,500.0,0.00025,120]
[343993316,1733170450660,737.26,0.00025,120]
[343993317,1733170452056,513.93,0.00025,120]
[343993318,1733170452125,500.0,0.00025,120]
[343993319,1733170452176,500.0,0.00025,120]
[343993320,1733170453410,663.8,0.00025,120]
[343993321,1733170453950,500.0,0.00025,120]
[343993322,1733170454483,686.33,0.00025,120]
[343993323,1733170456535,1809.53,0.00025,120]
[343993324,1733170456593,500.0,0.00025,120]
[343993325,1733170456755,2561.71,0.00025,120]
[343993326,1733170457046,500.0,0.00025,120]
[343993327,1733170458247,522.52,0.00025,120]
[343993328,1733170459132,1990.44,0.00025,120]
[343993329,1733170460843,2023.68,0.00025,120]
[343993330,1733170460901,2107.1,0.00025,120]
[343993331,1733170461247,500.0,0.00025,120]
[343993332,1733170462523,500.0,0.00025,120]
[343993333,1733170462582,500.0,0.00025,120]
[343993334,1733170462652,855.5,0.00025,120]
[343993335,1733170462775,566.7,0.00025,120]
[343993336,1733170463505,700.0,0.00025,120]
[343993337,1733170463946,1953.56,0.00025,120]
[343993338,1733170464347,500.0,0.00025,120]
[343993339,1733170465131,500.0,0.00025,120]
[343993340,1733170465580,1030.02,0.00025,120]
[343993341,1733170466085,500.0,0.00025,120]
[343993342,1733170466383,500.0,0.00025,120]
[343993343,1733170467122,25715.95,0.00025,120]
[343993344,1733170467264,4318.42,0.00025,120]
[343993345,1733170467839,500.0,0.00025,120]
[343993346,1733170468084,2776.29,0.00025,120]
[343993347,1733170468600,500.0,0.00025,120]
[343993348,1733170469496,477.94772737,0.00025,120]
[343993349,1733170470144,500.0,0.00025,120]
[343993350,1733170470331,552.16,0.00025,120]
[343993351,1733170470702,1702.0,0.00025,120]
[343993352,1733170471549,500.0,0.00025,120]
[343993353,1733170473432,2786.71,0.00025,120]
[343993354,1733170473522,294.0073564,0.00025,120]
[343993355,1733170473618,508.01,0.00025,120]
[343993356,1733170473754,1835.11,0.00025,120]
[343993357,1733170475951,500.0,0.00025,120]
[343993358,1733170476028,500.0,0.00025,120]
[343993359,1733170476185,500.0,0.00025,120]
[343993360,1733170476303,500.0,0.00025,120]
[343993361,1733170476551,2768.59,0.00025,120]
[343993362,1733170476619,6718.18,0.00025,120]
[343993363,1733170476677,500.0,0.00025,120]
[343993364,1733170478110,500.0,0.00025,120]
[343993365,1733170478279,337.11529892,0.00025,120]
[343993366,1733170478368,4289.31,0.00025,120]
[343993367,1733170478525,2263.57,0.00025,120]
[343993368,1733170479014,2755.14,0.00025,120]
[343993369,1733170479115,6658.64,0.00025,120]
[343993370,1733170479183,685.04,0.00025,120]
[343993371,1733170480609,864.98,0.00025,120]
[343993372,1733170480770,504.26101258,0.00025,120]
[343993373,1733170481469,500.0,0.00025,120]
[343993374,1733170482055,500.0,0.00025,120]
[343993375,1733170484627,517.09582492,0.00025,120]
[343993376,1733170485781,1108.25,0.00025,120]
[343993377,1733170486210,574.66,0.00025,120]
[343993378,1733170486422,9038.78,0.00025,120]
[343993379,1733170486875,2020.08,0.00025,120]
[343993380,1733170487257,500.0,0.00025,120]
[343993381,1733170487480,977.81,0.00025,120]
[343993382,1733170487717,2563.26,0.00025,120]
[343993383,1733170488223,500.0,0.00025,120]
[343993384,1733170488704,500.0,0.00025,120]
[343993385,1733170489632,500.0,0.00025,120]
[343993386,1733170490794,500.0,0.00025,120]
[343993387,1733170973510,1000.0,7e-05,2]
[343993388,1733170981712,1000.0,0.00012122,29]
[343993389,1733170988966,1000.0,7e-05,2]
[343993390,1733170992414,1000.0,0.0001212,29]
[343993391,1733171011128,1000.0,0.000121,29]
[343993392,1733171011454,1000.0,7e-05,2]
[343993394,1733171026840,790.99015587,7e-05,2]
[343993395,1733171063942,1000.0,0.00012122,29]
[343993396,1733171122902,1000.0,0.00012122,29]
[343993397,1733171196141,-3613.00857004,7.179e-05,2]
[343993418,1733171432132,-300.0,7.178e-05,2]
[343993419,1733171432142,-1300.64415,7.178e-05,2]
[343993420,1733171432189,-1422.09585,7.178e-05,2]
[343993421,1733171432199,-1624.30651476,7.179e-05,2]
[343993422,1733171432263,-13763.24347884,7.179e-05,2]
[343993423,1733171432332,-4899.44143636,7.179e-05,2]
[343993424,1733171432343,-200.0,7.198e-05,2]
[343993425,1733171432352,-534.64,7.351e-05,2]
[343993426,1733171432362,-166.67,7.433e-05,2]
[343993427,1733171432372,-344.1849,7.59e-05,2]
[343993428,1733171432382,-500.0,7.673e-05,2]
[343993429,1733171432392,-150.0,7.689e-05,2]
[343993430,1733171432402,-150.0,7.689e-05,2]
[343993431,1733171432411,-150.0,7.689e-05,2]
[343993432,1733171432421,-150.0,7.689e-05,2]
[343993433,1733171432431,-150.0,7.689e-05,2]
[343993434,1733171432442,-150.0,7.689e-05,2]
[343993435,1733171432452,-150.0,7.689e-05,2]
[343993437,1733171432465,-150.0,7.689e-05,2]
[343993439,1733171432475,-150.0,7.689e-05,2]
[343993441,1733171432484,-150.0,7.689e-05,2]
[343993443,1733171432495,-150.0,7.689e-05,2]
[343993445,1733171432505,-150.0,7.689e-05,2]
[343993447,1733171432515,-150.0,7.689e-05,2]
[343993449,1733171432524,-200.0,7.69e-05,2]
[343993451,1733171432534,-418414.46702593,7.69e-05,2]
[343993489,1733171433493,-544.17888084,7.69e-05,2]
[343993936,1733171438054,-267.84259909,7.178e-05,2]
[343993938,1733171438065,-88166.11912522,7.69e-05,2]
[343993941,1733171438078,-1846.55,7.69e-05,2]
[343993943,1733171438092,-7673.53031307,7.69e-05,2]
[343993945,1733171438104,-19197.78805082,7.69e-05,2]
[343993947,1733171438117,-12587.54672847,7.69e-05,2]
[343993951,1733171438143,-1787.03457189,7.69e-05,2]
[343993961,1733171438245,-1417394.83910169,7.69e-05,2]
[343993963,1733171438255,-200.0,7.692e-05,2]
[343993965,1733171438264,-600.0,7.7e-05,2]
[343993967,1733171438274,-432.33824777,7.7e-05,2]
[343993969,1733171438284,-24460369.99745764,7.7e-05,2]
[343993971,1733171438295,-268.2,7.7e-05,2]
[343994101,1733171440019,-960.46378152,7.7e-05,2]
[343994103,1733171440031,-314.64633174,7.7e-05,2]
[343994110,1733171440080,-22309.09168473,7.7e-05,2]
[343994111,1733171440143,-574.66928342,7.7e-05,2]
[343994112,1733171440258,-33983.99999995,7.7e-05,2]
[343994118,1733171440270,-304.605,7.7e-05,2]
[343994119,1733171440621,-555.189966,7.7e-05,2]
[343994130,1733171443073,-31279.94426644,7.7e-05,2]
[343994131,1733171443085,-21292.88653663,7.7e-05,2]
[343994132,1733171443099,-278.22,7.7e-05,2]
[343994133,1733171443137,-5078.52262629,7.7e-05,2]
[343994134,1733171443148,-2058.39493387,7.7e-05,2]
[343994135,1733171443159,-4775.33511411,7.7e-05,2]
[343994136,1733171443171,-2839.86791069,7.7e-05,2]
[343994137,1733171443183,-7715.27325158,7.7e-05,2]
[343994138,1733171443194,-1540.30705508,7.7e-05,2]
[343994139,1733171443253,-6587.5788742,7.7e-05,2]
[343994140,1733171443266,-58892.40047571,7.7e-05,2]
[343994141,1733171443279,-10816.50963006,7.7e-05,2]
[343994142,1733171443327,-7655.43476019,7.7e-05,2]
[343994161,1733171445983,-2157.33974528,7.7e-05,2]
[343994162,1733171446047,-471.99583826,7.7e-05,2]
[343994163,1733171446116,-1705.77380332,7.7e-05,2]
[343994164,1733171446128,-6206.469345,7.7e-05,2]
[343994165,1733171446141,-4728.42212867,7.7e-05,2]
[343994171,1733171446474,-6475.47153046,7.7e-05,2]
[343994173,1733171446487,-425.58,7.7e-05,2]
[343994174,1733171446499,-1343.3,7.7e-05,2]
[343994175,1733171446510,-1925.12,7.7e-05,2]
[343994176,1733171446522,-2480.601996,7.7e-05,2]
[343994177,1733171446580,-459.68619472,7.7e-05,2]
[343994182,1733171643450,3085.36584668,0.00012122,29]
[343994183,1733171643474,5914.63415332,0.00012122,29]
[343994185,1733171715526,4085.36584668,0.00012121,30]
[343994186,1733171715551,914.63415332,0.00012121,30]
[343994187,1733171727466,796.0,7.116e-05,2]
[343994190,1733172025699,15584.63,7.046e-05,2]
[343994206,1733172323340,150.0,6.929e-05,2]
[343994211,1733172475163,427.71,7.019e-05,2]
[343994251,1733172632228,-300.0,7.3e-05,2]
[343994253,1733172632238,-176.34,7.329e-05,2]
[343994255,1733172632249,-600.0,7.4e-05,2]
[343994257,1733172632258,-167.948811,7.45e-05,2]
[343994258,1733172632267,-3171.46837307,7.471e-05,2]
[343994259,1733172632287,-321.53162693,7.471e-05,2]
[343994260,1733172632297,-271.38838063,7.5e-05,2]
[343994261,1733172632392,-723.67942733,7.5e-05,2]
[343994262,1733172632404,-4.93219204,7.5e-05,2]
[343994263,1733172632413,-266.69649635,7.547e-05,2]
[343994264,1733172632423,-287.40129661,7.6e-05,2]
[343994265,1733172632462,-2212.59870339,7.6e-05,2]
[343994266,1733172632475,-1300.0,7.6e-05,2]
[343994267,1733172632484,-500.0,7.673e-05,2]
[343994268,1733172632494,-200.0,7.678e-05,2]
[343994269,1733172632507,-150.0,7.689e-05,2]
[343994270,1733172632516,-150.0,7.689e-05,2]
[343994271,1733172632526,-150.0,7.689e-05,2]
[343994272,1733172632535,-150.0,7.689e-05,2]
[343994273,1733172632548,-150.0,7.689e-05,2]
[343994274,1733172632558,-150.0,7.689e-05,2]
[343994275,1733172632567,-150.0,7.689e-05,2]
[343994276,1733172632577,-150.0,7.689e-05,2]
[343994277,1733172632587,-150.0,7.689e-05,2]
[343994278,1733172632596,-150.0,7.689e-05,2]
[343994279,1733172632605,-150.0,7.689e-05,2]
[343994280,1733172632614,-150.0,7.689e-05,2]
[343994281,1733172632623,-200.0,7.693e-05,2]
[343994282,1733172632633,-150.0,7.698e-05,2]
[343994283,1733172632643,-498.71832161,7.699e-05,2]
[343994285,1733172638300,-2500.0,7.6e-05,2]
[343994286,1733172638310,-1677.57067839,7.699e-05,2]
[343994287,1733172638319,-178.2,7.699e-05,2]
[343994288,1733172638330,-2818.03,7.699e-05,2]
[343994289,1733172638340,-291458.77154126,7.7e-05,2]
[343994290,1733172638364,-1300.0,7.7e-05,2]
[343994291,1733172638376,-446.04888513,7.7e-05,2]
[343994292,1733172638414,-1689.24092646,7.7e-05,2]
[343994312,1733172641152,-669.99000012,7.7e-05,2]
[343994313,1733172641183,-670.1327504,7.7e-05,2]
[343994314,1733172641199,-13045.85700317,7.7e-05,2]
[343994315,1733172641210,-6451.90984778,7.7e-05,2]
[343994328,1733172643216,-4275.5011,7.7e-05,2]
[343994330,1733172643276,-6158.75,7.7e-05,2]
[343994331,1733172643287,-6764.26238044,7.7e-05,2]
[343994332,1733172643299,-8240.35124159,7.7e-05,2]
[343994333,1733172643310,-1870.17583784,7.7e-05,2]
[343994334,1733172643321,-4423.58091545,7.7e-05,2]
[343994335,1733172643447,-19308.42371201,7.7e-05,2]
[343994336,1733172643458,-2314.86914617,7.7e-05,2]
[343994337,1733172643472,-96620.88998962,7.7e-05,2]
[343994338,1733172643483,-2072.64568245,7.7e-05,2]
[343994339,1733172643494,-2247.3222288,7.7e-05,2]
[343994340,1733172643507,-1986.15,7.7e-05,2]
[343994341,1733172643565,-3006.57780999,7.7e-05,2]
[343994361,1733172646956,-1376.9,7.7e-05,2]
[343994362,1733172646967,-648.0676295,7.7e-05,2]
[343994363,1733172646978,-4498.8,7.7e-05,2]